[Event "8th Holuj-Radzikowska Rapid 2018"]
[Site "Wroclaw"]
[Date "2018.12.11"]
[Round "10"]
[White "Zawadzka, Jolanta"]
[Black "Abdumalik, Zhansaya"]
[Result "1/2-1/2"]
[ECO "B40"]
[WhiteElo "2423"]
[BlackElo "2470"]
[Annotator "RC"]
[PlyCount "108"]
[EventDate "2018.11.26"]
[EventType "schev"]
[EventCountry "POL"]
[SourceTitle "playchess.com"]
[Source "ChessBase"]
[SourceQuality "1"]
[WhiteTeam "Poland"]
[BlackTeam "World"]
[WhiteTeamCountry "POL"]
[TimeControl "900+10"]

1. e4 {[%emt 0:00:00]} c5 {[%emt 0:00:15]} 2. Nf3 {[%emt 0:00:00]} e6 {[%emt 0:00:01]} 3. c4 {[%emt 0:00:00]} a6 {[%emt 0:00:07]} 4. Nc3 {[%emt 0:00:00]} Qc7 {[%emt 0:00:06]} 5. Be2 {[%emt 0:00:00]} b6 {[%emt 0:00:06]} 6. O-O {[%emt 0:00:01]} Bb7 {[%emt 0:00:01]} 7. d4 {[%emt 0:00:05]} cxd4 {[%emt 0:00:02]} 8. Nxd4 {[%emt 0:00:02]} Nf6 {[%emt 0:00:04]} 9. f3 {[%emt 0:00:52]} Bd6 {[%emt 0:00:12]} 10. Kh1 {[%emt 0:00:41]} Be7 {[%emt 0:01:31]} 11. Be3 {[%emt 0:00:05]} d6 {[%emt 0:00:28]} 12. Qd2 {[%emt 0:00:03]} Nbd7 {[%emt 0:00:01]} 13. a4 {[%emt 0:00:06]} O-O {[%emt 0:00:21]} 14. a5 {[%emt 0:00:05]} bxa5 {[%emt 0:00:13]} 15. Nb3 {[%emt 0:00:02]} Rab8 {[%emt 0:00:16]} 16. Nxa5 {[%emt 0:00:06]} Ba8 {[%emt 0:00:02]} 17. Rfc1 {[%emt 0:00:58]} h5 {[%emt 0:00:22]} 18. b4 {[%emt 0:02:25]} h4 {[%emt 0:00:08]} 19. b5 {[%emt 0:01:33]} h3 {[%emt 0:00:02]} 20. g3 {[%emt 0:00:01]} Nc5 {[%emt 0:00:36]} 21. Bf1 {[%emt 0:00:32]} axb5 {[%emt 0:02:44]} 22. cxb5 {[%emt 0:00:42]} d5 {[%emt 0:00:38]} 23. Na4 {[%emt 0:01:15]} Nfd7 {[%emt 0:00:23]} 24. Nxc5 {[%emt 0:00:15]} Bxc5 {[%emt 0:00:03]} 25. Bxc5 {[%emt 0:00:53]} Nxc5 {[%emt 0:00:02]} 26. Qe3 {[%emt 0:00:05]} Rbc8 {[%emt 0:01:13]} 27. Nb3 {[%emt 0:01:55]} d4 {[%emt 0:00:18]} 28. Nxd4 {[%emt 0:00:50]} Qd6 {[%emt 0:00:51]} 29. Bxh3 {[%emt 0:00:26]} Bb7 {[%emt 0:00:02]} 30. Bf1 {[%emt 0:00:19]} f5 {[%emt 0:01:03]} 31. Bg2 f4 {[%emt 0:01:39]} 32. gxf4 {[%emt 0:02:38]} Rxf4 {[%emt 0:00:04]} 33. Nc6 {[%emt 0:00:18]} Bxc6 {[%emt 0:01:46]} 34. Qxc5 {[%emt 0:00:10]} Qxc5 {[%emt 0:00:23]} 35. Rxc5 {[%emt 0:00:02]} Bb7 {[%emt 0:00:02]} 36. Rxc8+ {[%emt 0:00:08]} Bxc8 {[%emt 0:00:01]} 37. Ra8 {[%emt 0:00:02]} Rf8 {[%emt 0:00:00]} 38. Bh3 {[%emt 0:00:05]} Kf7 {[%emt 0:00:31]} 39. Kg2 {[%emt 0:00:02]} Rd8 {[%emt 0:00:23]} 40. Kg3 {[%emt 0:00:14]} Ke7 {[%emt 0:00:03]} 41. b6 {[%emt 0:00:12]} g6 {[%emt 0:01:26]} 42. Rb8 {[%emt 0:00:08]} Bd7 {[%emt 0:00:16]} 43. Rxd8 {[%emt 0:00:05]} Kxd8 {[%emt 0:00:02]} 44. Kf4 {[%emt 0:00:07]} e5+ {[%emt 0:00:07]} 45. Kxe5 {[%emt 0:00:01]} Bxh3 {[%emt 0:00:04]} 46. Kf6 {[%emt 0:00:01]} Bg2 {[%emt 0:00:03]} 47. Kxg6 {[%emt 0:00:43]} Bxf3 {[%emt 0:00:01]} 48. e5 {[%emt 0:00:02]} Kd7 {[%emt 0:01:07]} 49. h4 {[%emt 0:00:29]} Ke6 {[%emt 0:00:17]} 50. h5 {[%emt 0:01:13]} Kxe5 {[%emt 0:00:04]} 51. h6 {[%emt 0:00:01]} Kd6 {[%emt 0:00:06]} 52. b7 {[%emt 0:00:31]} Kc7 {[%emt 0:00:18]} 53. Kf5 {[%emt 0:00:09]} Bd1 {[%emt 0:00:05]} 54. Ke5 {[%emt 0:00:11]} Bc2 {[%emt 0:00:02] Ke4} 1/2-1/2

[Event "8th Holuj-Radzikowska Rapid 2018"]
[Site "Wroclaw"]
[Date "2018.12.11"]
[Round "10"]
[White "Szczepkowska, Karina"]
[Black "Skripchenko, Almira"]
[Result "1/2-1/2"]
[ECO "A41"]
[WhiteElo "2408"]
[BlackElo "2408"]
[Annotator "NA"]
[PlyCount "33"]
[EventDate "2018.11.26"]
[EventType "schev"]
[EventCountry "POL"]
[SourceTitle "playchess.com"]
[Source "ChessBase"]
[SourceQuality "1"]
[WhiteTeam "Poland"]
[BlackTeam "World"]
[WhiteTeamCountry "POL"]
[TimeControl "900+10"]

1. d4 {[%emt 0:00:00]} d6 {[%emt 0:00:00]} 2. c4 {[%emt 0:00:00]} e5 {[%emt 0:00:00]} 3. Nf3 {[%emt 0:00:01]} Nd7 {[%emt 0:00:15]} 4. Nc3 {[%emt 0:00:03]} Ngf6 {[%emt 0:00:05]} 5. g3 {[%emt 0:00:14]} g6 {[%emt 0:00:17]} 6. Bg2 {[%emt 0:00:02]} Bg7 {[%emt 0:00:02]} 7. O-O {[%emt 0:00:03]} O-O {[%emt 0:00:03]} 8. Qc2 {[%emt 0:00:02]} Re8 {[%emt 0:00:12]} 9. Rd1 {[%emt 0:00:08]} c6 {[%emt 0:00:26]} 10. b3 {[%emt 0:00:10]} exd4 {[%emt 0:01:30]} 11. Nxd4 {[%emt 0:00:03]} Qe7 {[%emt 0:00:04]} 12. h3 {[%emt 0:00:17]} Nc5 {[%emt 0:00:07]} 13. Bb2 {[%emt 0:00:30]} a5 {[%emt 0:00:20]} 14. a3 {[%emt 0:00:29]} Bd7 {[%emt 0:00:15]} 15. b4 {[%emt 0:00:30]} axb4 {[%emt 0:00:02]} 16. axb4 {[%emt 0:00:02]} Rxa1 {[%emt 0:00:04]} 17. Bxa1 {[%emt 0:00:51]} 1/2-1/2